Cogmind - Beta 14 @@@ ROGUE MODE // 2025.03.23 @ 12:00:27 Player: winnking222 Result: Destroyed by NP-340(R) with Subdweller Shrapnel Launcher Performance ------------- Evolutions (0) 0 Regions Visited (2) 400 Robots Destroyed (43) 215 Value Destroyed (1065) 1065 Prototype IDs (17) 340 Alien Tech Used (0) 0 Bonus (0) 0 TOTAL SCORE: 2020 Bonus ------- None Cogmind --------- Core Integrity 0/250 Matter 146/300 Energy 170/170 System Corruption 1% Temperature Cool (0) Movement Walking (190) Ox1 Location -10/Subcaves Parts ------- > --- POWER (1) -------- Makeshift Power Source > --- PROPULSION (2) --- Aluminum Leg Aluminum Leg > --- UTILITY (2) ------ Large Storage Unit > --- WEAPON (2) ------- Riot Gun Heavy Battle Rifle > --- INVENTORY (15) --- Subdweller Power Source Subdweller Monowheel Heat Sink Medium Matter Pod (100) Hardened Light Armor Plating Makeshift Light Armor Plating Subdweller Machine Gun Subdweller Machine Gun Makeshift Shrapnel Gun Plasma Cutter Plasma Cutter Peak State ------------ > --- POWER ------------ Makeshift Power Source > --- PROPULSION ------- Aluminum Leg Aluminum Leg > --- UTILITY ---------- Large Storage Unit Makeshift Light Armor Plating > --- WEAPON ----------- Heavy Battle Rifle Makeshift Shrapnel Gun > --- INVENTORY -------- Subdweller Power Source Subdweller Monowheel Heat Sink Medium Matter Pod Hardened Light Armor Plating Hardened Light Armor Plating Riot Gun Subdweller Machine Gun Subdweller Machine Gun Grenade Launcher Plasma Cutter Plasma Cutter [Rating: 21] Favorites ----------- Power Light Ion Engine Engine Light Ion Engine Propulsion Aluminum Leg Leg Aluminum Leg Utility Hardened Light Armor Plating Device Heat Sink Storage Large Storage Unit Protection Hardened Light Armor Plating Weapon Heavy Assault Rifle Energy Gun Particle Gun Ballistic Gun Heavy Assault Rifle Launcher Grenade Launcher Special Weapon Plasma Cutter Build | -11 -10 -10 ------- Run | Yrd Mat Sub Slots Evolved . | . . . Power . | . . . Propulsion . | . . . Utility . | . . . Weapon . | . . . Parts Attached 50 | 6 20 24 Power 4 | 1 1 2 Engine 4 | 1 1 2 Core . | . . . Reactor . | . . . Propulsion 11 | 2 7 2 Treads . | . . . Leg 11 | 2 7 2 Wheel . | . . . Hover . | . . . Flight . | . . . Utility 11 | 1 7 3 Device 1 | . 1 . Storage 3 | 1 2 . Processor . | . . . Hackware . | . . . Protection 7 | . 4 3 Artifact . | . . . Weapon 24 | 2 5 17 Energy Gun 2 | . 1 1 Energy Cannon . | . . . Ballistic Gun 16 | 2 4 10 Ballistic Cannon . | . . . Launcher 5 | . . 5 Special Weapon 1 | . . 1 Impact Weapon . | . . . Slashing Weapon . | . . . Piercing Weapon . | . . . Special Melee Weapon . | . . . Unidentified Prototypes . | . . . Parts Lost 7 | . 1 6 Power 2 | . 1 1 Propulsion 2 | . . 2 Utility 2 | . . 2 Weapon 1 | . . 1 Highest Loss Streak 2 | . 1 2 To Critical Strikes . | . . . Average Slot Usage (%) 99 | . 98 99 Engine 13 | . 13 13 Leg 27 | . 28 27 Storage 14 | . 14 14 Protection 13 | . 13 13 Ballistic Gun 27 | . 27 27 Peak Build Rating 21 | 6 11 21 Average Rating 13 | 4 10 14 On Entrance 5 | . 6 11 Naked Turns . | . . . Heaviest Build 36 | 12 34 36 Greatest Support 20 | 20 20 20 Greatest Overweight (x) 3 | . 1 3 Average Overweight (x) . | . . 1 Largest Inventory Capacity 15 | 8 15 15 Average Capacity 13 | 7 10 15 Most Carried 15 | 6 12 15 Average Carried 12 | 4 9 13 Final Capacity 15 | 8 15 15 Final Carried 11 | 4 11 11 Class Distribution -------------------- 100% | Mutant Dominant Class ---------------- Mutant | -10/Materials Mutant | -10/Subcaves Resources | -11 -10 -10 ----------- Run | Yrd Mat Sub Matter Collected 1616 | 273 638 705 Remotely . | . . . Salvage Created 1393 | 86 880 427 Parts 87 | 5 55 27 Haulers Intercepted 2 | . 2 . Recyclers Shooed 3 | . 3 . Parts Field Recycled . | . . . Retrieved Matter . | . . . Parts Self-Destructed 10 | . . 10 Prevented . | . . . Kills | -11 -10 -10 ------- Run | Yrd Mat Sub Combat Hostiles Destroyed 32 | . 16 16 Guns 32 | . 16 16 Classes Destroyed 9 | 2 5 2 Tunneler 1 | 1 . . Hauler 2 | . 2 . Recycler 3 | 1 2 . Operator 1 | . 1 . Turret 2 | . . 2 Watcher 2 | . 2 . Swarmer 10 | . 3 7 Grunt 13 | . 13 . Subdweller 9 | . . 9 Best Kill Streak 4 | 2 4 4 Combat Bots Only 4 | . 3 4 Max Kills in Single Turn 2 | 1 2 2 Gunslinging 1 | . . 1 Exploded . | . . . Melee . | . . . Uniques/NPCs Destroyed . | . . . Combat | -11 -10 -10 -------- Run | Yrd Mat Sub Hostile Shots Fired 214 | . 84 130 Missed 66 | . 23 43 Damage Taken 1927 | . 681 1246 Core 251 | . 51 200 Absorbed by Shields . | . . . Core Remaining (%) 100 | 100 . . Volleys Fired 158 | 10 73 75 Largest 2 | 2 2 2 Hottest 83 | 40 46 83 Shots Fired 311 | 20 146 145 Gun 300 | 20 146 134 Cannon . | . . . Launcher 10 | . . 10 Special 1 | . . 1 Kinetic 295 | 20 146 129 Thermal 1 | . . 1 Explosive 10 | . . 10 Electromagnetic 5 | . . 5 Robot Hit Streak 22 | 3 10 22 Robot Miss Streak 4 | 3 4 4 Penetration Max . | . . . Secondary Targets 3 | . 1 2 Max Gunslinging Chain 1 | . 1 1 Shots Hit Robots 174 | 10 88 76 Core Hits 72 | 4 36 32 Critical Kills . | . . . Critical Parts Destroyed . | . . . Critical Strikes . | . . . Melee Attacks . | . . . Impact . | . . . Slashing . | . . . Piercing . | . . . Sneak Attacks . | . . . Combat Hostiles . | . . . Follow-up Attacks . | . . . Damage Inflicted 2903 | 95 1239 1569 Guns 2734 | 95 1239 1400 Cannons . | . . . Explosions 169 | . . 169 Melee . | . . . Ramming . | . . . Kinetic 2656 | 95 1239 1322 Thermal 47 | . . 47 Explosive 122 | . . 122 Electromagnetic 78 | . . 78 Impact . | . . . Slashing . | . . . Piercing . | . . . Highest Corruption 1 | . 1 1 Average Corruption 1 | . 1 1 Corruption Purged . | . . . Corruption Blocked . | . . . Effects 36 | . 8 28 Message Errors 9 | . 1 8 Matter Fused 11 | . 2 9 Heat Flow Errors 2 | . 1 1 Energy Discharges 4 | . 2 2 Data Loss (minor) 4 | . 2 2 Data Loss (major) 2 | . . 2 Misfires 1 | . . 1 Alerts 3 | . . 3 Overload Shots . | . . . Overflow Damage 3 | . . 3 Projectiles . | . . . Explosions 3 | . . 3 Melee . | . . . Knockbacks . | . . . Impact . | . . . Kinetic . | . . . Secondary . | . . . Self-Inflicted Damage . | . . . Shots . | . . . Rammed . | . . . Targets Rammed 2 | . 2 . Kicked 2 | . 2 . Crushed . | . . . Highest Temperature 220 | . 117 220 Average Temperature 29 | . 23 73 Received Heat Transfer 612 | . 318 294 Siege Activations . | . . . Robots Corrupted . | . . . Combat Hostiles . | . . . Parts Fried . | . . . Impact Corruptions . | . . . Robots Melted . | . . . Combat Hostiles . | . . . Parts Melted . | . . . Heat Transferred 50 | . . 50 Parts Sabotaged . | . . . Parts Stolen . | . . . Parts Stripped . | . . . Power Chain Reactions 1 | . . 1 Alert | -11 -10 -10 ------- Run | Yrd Mat Sub Peak Influence 203 | 10 203 . Initial 6 | . 6 . Average 91 | 1 98 . Maximum Alert Level 1 | . 1 . Low Security (%) 99 | 100 99 . Level 1 . | . . . Level 2 . | . . . Level 3 . | . . . Level 4 . | . . . Level 5 . | . . . High Security . | . . . Max Security . | . . . Squads Dispatched 3 | . 3 . Investigation 2 | . 2 . Extermination . | . . . Reinforcement 1 | . 1 . Assault . | . . . Garrison . | . . . Intercept . | . . . Searches Triggered . | . . . Construction Impeded . | . . . Haulers Reinforced . | . . . Active Scanning Responses . | . . . Cargo Convoy Interrupts . | . . . Stealth | -11 -10 -10 --------- Run | Yrd Mat Sub Distress Signals 1 | . 1 . Communications Jammed . | . . . Distress Signals . | . . . Times Spotted 55 | . 29 26 Peak Tracking Total 6 | . 5 6 Tactical Retreats 5 | . 2 3 Traps | -11 -10 -10 ------- Run | Yrd Mat Sub Traps Triggered 3 | . 2 1 Indirectly . | . . . Trap Hack Attempts . | . . . Triggered . | . . . Disarmed . | . . . Reprogrammed . | . . . Reused . | . . . Traps Extracted . | . . . Installed . | . . . Triggered . | . . . Machines | -11 -10 -10 ---------- Run | Yrd Mat Sub Machines Disabled 3 | . . 3 Max in Single Turn 2 | . . 2 Machines Repaired . | . . . Machines Dismantled . | . . . Machines Sabotaged . | . . . Overloaded Fab Kills . | . . . Hacking | -11 -10 -10 --------- Run | Yrd Mat Sub Machines Accessed 8 | . 5 3 Terminals 4 | . 4 . Fabricators . | . . . Repair Stations . | . . . Recycling Units 1 | . 1 . Scanalyzers . | . . . Garrison Access . | . . . Total Hacks 28 | . 14 14 Successful 20 | . 6 14 Failed 8 | . 8 . Catastrophic . | . . . Database Lockouts . | . . . Manual . | . . . Terminals 13 | . 13 . Fabricators . | . . . Repair Stations . | . . . Recycling Units 1 | . 1 . Scanalyzers . | . . . Garrison Access . | . . . Terminal Hacks 19 | . 5 14 Record 13 | . 1 12 Prototype ID Bank 3 | . 3 . Open Door 1 | . . 1 Locate Traps 1 | . 1 . Derelict Proto ID Bank 1 | . . 1 Fabricator Hacks . | . . . Repair Station Hacks . | . . . Recycling Unit Hacks 1 | . 1 . Report Inventory 1 | . 1 . Scanalyzer . | . . . Garrison Access Hacks . | . . . Unauthorized Hacks . | . . . Terminals . | . . . Fabricators . | . . . Repair Stations . | . . . Recycling Units . | . . . Scanalyzers . | . . . Garrison Access . | . . . Data Cores Recovered . | . . . Used . | . . . Hacking Detections 3 | . 3 . Full Trace Events 3 | . 3 . Feedback Events . | . . . Feedback Blocked . | . . . Robot Schematics Acquired . | . . . Robots Built . | . . . Authchips . | . . . Time . | . . . Total Robot Build Rating . | . . . Part Schematics Acquired . | . . . Parts Built . | . . . Authchips . | . . . Time . | . . . Total Part Build Rating . | . . . Parts Repaired . | . . . Time . | . . . Parts Recycled . | . . . Recycled Matter . | . . . Retrieved Matter . | . . . Retrieved Components . | . . . Parts Scanalyzed . | . . . Part Schematics Acquired . | . . . Parts Damaged . | . . . Bothacking | -11 -10 -10 ------------ Run | Yrd Mat Sub Used RIF Installer . | . . . Robots Hacked . | . . . Non-combat . | . . . Combat . | . . . Robot Hacks Applied . | . . . Relay Couplers Released . | . . . Fabnet Peak Effective % . | . . . Robots Rewired . | . . . Allies Hacked . | . . . Hacks Repelled . | . . . Allies | -11 -10 -10 -------- Run | Yrd Mat Sub Total Allies . | . . . Largest Group . | . . . Highest-Rated Group . | . . . Highest-Rated Ally . | . . . Total Orders . | . . . Ally Attacks . | . . . Total Damage . | . . . Kills . | . . . Allies Corrupted . | . . . Allies Melted . | . . . Intel | -11 -10 -10 ------- Run | Yrd Mat Sub Robot Analysis Total . | . . . Derelict Logs Recovered 3 | . . 3 Drone Launches . | . . . Drone Recoveries . | . . . Exploration | -11 -10 -10 ------------- Run | Yrd Mat Sub Turns Passed 5329 | 125 1619 3585 Spaces Moved 2246 | 80 743 1423 Core 15 | 15 . . Treads . | . . . Legs 2231 | 65 743 1423 Wheels . | . . . Hover . | . . . Flight . | . . . Fastest Speed 50 | 50 120 190 Average Speed 184 | 106 181 190 Slowest Speed 330 | 120 190 330 Overloaded Moves . | . . . Propulsion Burnouts . | . . . Robots Hopped . | . . . Cave-ins Triggered . | . . . Exploration Rate (%) 63 | 4 93 93 Regions Visited 2 Branch Regions 1 Pre-discovered Areas . | . . . Known Exits Taken . | . . . Unknown Exits Taken 2 | 1 1 . Scrap Searched 6 | . . 6 Spaces Dug 13 | . . 13 Terrain Destroyed 41 | . . 41 Melee . | . . . Projectile . | . . . AOE 41 | . . 41 Terrain Rammed . | . . . Walls Destroyed . | . . . Machines Disabled . | . . . Actions | -11 -10 -10 --------- Run | Yrd Mat Sub Total 3130 | 101 879 2150 Wait 624 | . 9 615 Move 2244 | 79 742 1423 Hop . | . . . Pick Up 30 | 6 15 9 Fast Attach 4 | 4 . . Attach 10 | 2 3 5 Detach 1 | . 1 . Swap 36 | . 17 19 Drop 21 | . 17 4 Fire 158 | 10 73 75 Melee . | . . . Ram . | . . . Kick 2 | . 2 . Crush . | . . . Escape Stasis . | . . . Rewire . | . . . Trap . | . . . Miscellaneous . | . . . Route ------- -11/Scrapyard -10/Materials (discovered 6 exits: [*Mat x3] / [*Min x2] / *Sub) -10/Subcaves (discovered 3 exits: [*Mat x2] / *Rec) History --------- Turn | Location | Event 7 | -11/Scrapyard | Discovered new exit (range 14) 126 | -11/Scrapyard | Entered Materials 306 | -10/Materials | Build established: Mutant 405 | -10/Materials | Discovered new exit (range 14) 643 | -10/Materials | Discovered new exit (range 5) 696 | -10/Materials | Discovered new exit (range 7) 855 | -10/Materials | Discovered new exit (range 8) 1097 | -10/Materials | Discovered new exit (range 12) 1730 | -10/Materials | Discovered new exit (range 9) 1745 | -10/Materials | Entered Subcaves 1745 | -10/Subcaves | Discovered new exit (range 15) 1770 | -10/Subcaves | Identified exit to Recycling 1978 | -10/Subcaves | Learned Materials emergency access door positions 2059 | -10/Subcaves | Learned Materials emergency access door positions 2066 | -10/Subcaves | Visited 4L-MR0's lab 3121 | -10/Subcaves | Discovered new exit (range 12) 3189 | -10/Subcaves | Core integrity fell below 50% 3449 | -10/Subcaves | Shifting Twisted Machinery released Scrap Shield 3455 | -10/Subcaves | Shifting Twisted Machinery released Sub. Optics 3808 | -10/Subcaves | Visited Clippyterm 3813 | -10/Subcaves | Learned Research machine intel 4348 | -10/Subcaves | Core integrity fell below 20% 4601 | -10/Subcaves | Disturbed a concealed Subdweller 4648 | -10/Subcaves | Shifting Twisted Machinery released Flamer 4653 | -10/Subcaves | Shifting Twisted Machinery released Shrapnel Trap 4719 | -10/Subcaves | Shifting Twisted Machinery released Mak. Light Armor Plating 4722 | -10/Subcaves | Shifting Twisted Machinery released Sub. Beam Cannon 5310 | -10/Subcaves | Ambushed by Subdweller buried in earth 5312 | -10/Subcaves | Ambushed by Subdweller buried in earth 5330 | -10/Subcaves | Destroyed by NP-340(R) with Subdweller Shrapnel Launcher Last Messages --------------- 04637_ Acquired 5 matter. 04639_ Acquired Mak. Power Source. Flamer falls loose from the Twisted Machinery. Shrapnel Trap falls loose from the Twisted Machinery. Mak. Light Armor Plating falls loose from the Twisted Machinery. Sub. Beam Cannon falls loose from the Twisted Machinery. 04731_ Acquired Mak. Light Armor Plating. 04835_ |V| /7#K=J6 U7VEPMO Y3HE 05109_ DKD2RUTW&ANWPUP|MKSCVYGQB/MEWFLW|3UVK/=G 05186_ System corrupted: Matter fused (-7). 05223_ System corrupted: Matter fused (-10). 05310_ Grenade Launcher destroyed. 05311_ NP-340(R): "ARGHSUB!" 05313_ DM-GF3(R): "ARGHSUB!" 05321_ The unstable cave ceiling collapses. 05323_ Hrd. Light Armor Plating destroyed. 05325_ DM-GF3(R) misfires. 05325_ DM-GF3(R) destroyed. 05325_ Switching to secondary target: NP-340(R). 05325_ Chain reaction triggered in Sub. Power Source. Map ----- +----------------------------------------------------+ | ??????????????????????????????????????????? | | ??????????????????????????????????????????? | | ??????????????????????????????????????????? | | ??????????????????????????????????????????? | | ???????###???????????###??????????????????? | | ?????### #####?????## #??????????????????? | | ?????# ##????# #??????????????????? | | ?????# ##??## #??????????????????? | | ????## #### #???????????????????? | | ##### ^ ##?##????????????????? | | ## ##### ##???????????????? | | ### #???????????????? | | ## ###???????????????? | | ### ^ #?????????????????? | | ## #### #?????????????????? | | ?## ## ####??????????????? | | ??# ## ^ #??????????????? | | ??## #### ### #??????????????? | | ???# ##??# ##?## #??????????????? | | #### #???# ##?#### ^####???????????? | | ## ##### ^^#??# ; #???????????? | | " ## ##??????????? | | ## ^ # #??????????? | | ?## ## !! #???????????? | | ??# #?# & * #???????????? | | ?? ###?#; [&@ #???????????? | | ?# ##??## #???????????? | | ?# ###??## #???????????? | | ? ## ##????# #???????????? | | ? ##? ##?????## # # R ;##???????????? | | ## ##?? #??????# ### # ????????????? | | ?##???? ??????#####?## ####???????????? | | ???????# ????????????? #??????????????? | | ????????# ???????????? #??????????????? | | ?????????#####????????????##??????????????? | | ??????????????????????????????????????????? | | ??????????????????????????????????????????? | | ??????????????????????????????????????????? | | ??????????????????????????????????????????? | | ??????????????????????????????????????????? | | ??????????????????????????????????????????? | | ??????????????????????????????????????????? | | ??????????????????????????????????????????? | | ??????????????????????????????????????????? | | ??????????????????????????????????????????? | | ??????????????????????????????????????????? | | ??????????????????????????????????????????? | | ??????????????????????????????????????????? | | ??????????????????????????????????????????? | | ??????????????????????????????????????????? | +----------------------------------------------------+ Best States ------------- Heat Dissipation 25 Energy Generation 15 Energy Capacity 250 Matter Stores 300 Matter Capacity 300 Sight Range 16 Terrain Scan Density 10 Armor Coverage 150 Evasion (%) 55 Item Schematics ----------------- None Robot Schematics ------------------ None Fabricated ------------ Nothing Alien Tech Used ----------------- None Achievements -------------- None Challenges ------------ None Game ------ Seed PulseVisualVibroblade Manual? 0 Play Time 00:25:23 Cumulative 39.9 hours Start 2025.03.23 @ 11:33:50 End 2025.03.23 @ 12:00:27 Sessions 1 Manual Loads 0 Difficulty Rogue Special Mode None Game No. 73 Rogue 73 Adventurer 0 Explorer 0 Win Type - Total 0 Types 0/0/0/0/0/0/0/0/0 Lore% 37 Gallery% 38 Achievement% 34 Wizard Run 0 Options --------- Layout 0 ASCII 0 Keyboard 0 Movement Mouse Keybinds 0 Fullscreen 1 Font 16/SmallcapsGlow Map View 75x55 Zoom Use 0% Tactical HUD 1 Map Filters NONE Filters NONE Steam 1 RUN: a78be26d-0f37-49b8-9d90-074cf0f28788